fUST/lending_fUST_20250523
["ID","MTS","AMOUNT","RATE_DAILY","PERIOD"]
[362103917,1747997432567,-430.0,0.000175,2]
[362103918,1747997432579,-430.0,0.000175,2]
[362103919,1747997432588,-489.75281253,0.000175,2]
[362103920,1747997432600,-430.0,0.000175,2]
[362103921,1747997432610,-470.0,0.000175,2]
[362103922,1747997432620,-430.0,0.00017774,2]
[362103923,1747997432630,-430.0,0.00017774,2]
[362103924,1747997432640,-500.0,0.00017888,2]
[362103925,1747997432650,-221.60376436,0.00017889,2]
[362103926,1747997432659,-303.33885378,0.000179,2]
[362103927,1747997432669,-430.0,0.00017988,2]
[362103928,1747997432679,-430.0,0.00017988,2]
[362103929,1747997432689,-430.0,0.00017988,2]
[362103930,1747997432699,-450.0,0.00017988,2]
[362103931,1747997432709,-430.0,0.00017988,2]
[362103932,1747997432719,-430.0,0.00017988,2]
[362103933,1747997432729,-430.0,0.00017988,2]
[362103934,1747997432739,-430.0,0.00017988,2]
[362103935,1747997432749,-430.0,0.00017988,2]
[362103936,1747997432759,-430.0,0.00017988,2]
[362103937,1747997432769,-469.37981876,0.00017988,2]
[362103938,1747997432779,-430.0,0.00017988,2]
[362103939,1747997432790,-430.0,0.00017988,2]
[362103940,1747997432800,-430.0,0.00017988,2]
[362103941,1747997432810,-430.0,0.00017988,2]
[362103942,1747997432820,-565.43,0.00017988,2]
[362103943,1747997432830,-430.0,0.00017988,2]
[362103944,1747997432840,-430.0,0.00017988,2]
[362103945,1747997432849,-430.0,0.00017988,2]
[362103946,1747997432859,-323.5658602,0.00017988,2]
[362103947,1747997432874,-430.0,0.00017988,2]
[362103948,1747997432884,-481.02456791,0.00017988,2]
[362103949,1747997432894,-430.0,0.00017988,2]
[362103950,1747997432904,-430.0,0.00017988,2]
[362103951,1747997432914,-323.0391236,0.00017988,2]
[362103952,1747997432924,-430.0,0.00017988,2]
[362103953,1747997432934,-420.0,0.00017988,2]
[362103954,1747997432945,-430.0,0.00017988,2]
[362103955,1747997432954,-430.0,0.00017988,2]
[362103956,1747997432964,-331.65880095,0.00017988,2]
[362103957,1747997432974,-430.0,0.00017988,2]
[362103958,1747997432984,-430.0,0.00017988,2]
[362103959,1747997432994,-470.0,0.00017988,2]
[362103960,1747997433003,-430.0,0.00017988,2]
[362103961,1747997433014,-432.00012465,0.00017989,2]
[362103962,1747997433023,-510.0,0.00017989,2]
[362103963,1747997433033,-430.0,0.00017989,2]
[362103964,1747997433043,-430.0,0.00017989,2]
[362103965,1747997433053,-430.0,0.00017989,2]
[362103966,1747997433063,-430.0,0.00017989,2]
[362103967,1747997433073,-430.0,0.00017989,2]
[362103968,1747997433083,-430.0,0.00017989,2]
[362103969,1747997433093,-430.0,0.00017989,2]
[362103970,1747997433103,-430.0,0.00017989,2]
[362103971,1747997433113,-430.0,0.00017989,2]
[362103972,1747997433123,-430.0,0.00017989,2]
[362103973,1747997433133,-430.0,0.00017989,2]
[362103974,1747997433144,-430.0,0.00017989,2]
[362103975,1747997433155,-430.0,0.00017989,2]
[362103976,1747997433165,-430.0,0.00017989,2]
[362103977,1747997433175,-430.0,0.00017989,2]
[362103978,1747997433186,-430.0,0.00017989,2]
[362103979,1747997433197,-430.0,0.00017989,2]
[362103980,1747997433207,-430.0,0.00017989,2]
[362103981,1747997433219,-259.36189208,0.00017989,2]
[362103982,1747997433229,-389.50258221,0.00017989,2]
[362103983,1747997433239,-430.0,0.00017989,2]
[362103984,1747997433250,-43.8178919,0.00018048,2]
[362103988,1747997438112,-323.47359478,0.00017988,2]
[362103989,1747997438124,-430.0,0.00017988,2]
[362103990,1747997438136,-386.1821081,0.00018048,2]
[362103991,1747997438151,-430.0,0.00018048,2]
[362103992,1747997438162,-157.40855095,0.00018262,2]
[362103993,1747997438174,-430.0,0.00018262,2]
[362103994,1747997438187,-198.60000001,0.00018262,2]
[362103995,1747997438200,-188.79,0.00018262,2]
[362103996,1747997438213,-434.32,0.00018262,2]
[362103997,1747997438226,-430.0,0.00018262,2]
[362103998,1747997438238,-430.0,0.00018262,2]
[362103999,1747997438250,-430.0,0.00018263,2]
[362104001,1747997438260,-438.85,0.00018263,2]
[362104002,1747997438271,-192.98190303,0.00018263,2]
[362104003,1747997438282,-430.0,0.00018263,2]
[362104004,1747997438293,-430.0,0.00018263,2]
[362104005,1747997438306,-430.0,0.00018263,2]
[362104006,1747997438318,-430.55,0.00018263,2]
[362104007,1747997438329,-430.0,0.00018263,2]
[362104008,1747997438340,-430.0,0.00018322,2]
[362104009,1747997438353,-430.0,0.00018537,2]
[362104010,1747997438366,-430.0,0.00018537,2]
[362104011,1747997438376,-212.48480548,0.00018692,2]
[362104012,1747997438388,-160.0,0.00018692,2]
[362104013,1747997438398,-535.42704154,0.00018692,2]
[362104014,1747997438414,-12112.23443293,0.00018692,2]
[362104015,1747997438426,-160.0,0.00018692,2]
[362104016,1747997438437,-894.64583333,0.00018692,2]
[362104017,1747997438448,-160.0,0.00018692,2]
[362104018,1747997438459,-160.0,0.00018692,2]
[362104019,1747997438470,-160.0,0.00018692,2]
[362104020,1747997438481,-422.85710789,0.00018692,2]
[362104021,1747997438491,-160.0,0.00018692,2]
[362104022,1747997438503,-430.0,0.00018811,2]
[362104023,1747997438514,-629.52730403,0.00018859,2]
[362104024,1747997438526,-221.60376429,0.00018891,2]
[362104025,1747997438536,-430.0,0.00019085,2]
[362104026,1747997438547,-158.185926,0.00019178,2]
[362104027,1747997438559,-430.0,0.00019359,2]
[362104028,1747997438570,-430.0,0.00019633,2]
[362104029,1747997438582,-221.60376429,0.00019892,2]
[362104030,1747997438593,-500.0,0.00019906,2]
[362104031,1747997438604,-500.0,0.00019906,2]
[362104032,1747997438616,-500.0,0.00019906,2]
[362104033,1747997438628,-500.0,0.00019906,2]
[362104034,1747997438640,-417.46071812,0.00019906,2]
[362104035,1747997438651,-500.0,0.00019906,2]
[362104036,1747997438661,-500.0,0.00019906,2]
[362104037,1747997438674,-500.0,0.00019906,2]
[362104038,1747997438686,-500.0,0.00019906,2]
[362104039,1747997438697,-271.50145524,0.00019906,2]
[362104040,1747997438708,-500.0,0.00019906,2]
[362104041,1747997438719,-500.0,0.00019906,2]
[362104042,1747997438731,-351.02316454,0.00019906,2]
[362104043,1747997438742,-500.0,0.00019906,2]
[362104044,1747997438754,-500.0,0.00019906,2]
[362104045,1747997438766,-500.0,0.00019906,2]
[362104046,1747997438778,-500.0,0.00019906,2]
[362104047,1747997438789,-500.0,0.00019906,2]
[362104048,1747997438800,-500.0,0.00019906,2]
[362104049,1747997438812,-500.0,0.00019906,2]
[362104050,1747997438824,-370.6798709,0.00019906,2]
[362104051,1747997438838,-129.3201291,0.00019906,2]
[362104052,1747997438849,-500.0,0.00019906,2]
[362104053,1747997438860,-486.61687188,0.00019906,2]
[362104054,1747997438872,-500.0,0.00019906,2]
[362104055,1747997438883,-500.0,0.00019906,2]
[362104056,1747997438895,-500.0,0.00019906,2]
[362104057,1747997438907,-500.0,0.00019906,2]
[362104058,1747997438919,-270.89635742,0.00019906,2]
[362104059,1747997438930,-500.0,0.00019906,2]
[362104060,1747997438941,-500.0,0.00019906,2]
[362104061,1747997438952,-430.0,0.00019907,2]
[362104062,1747997438963,-158.01,0.0002,2]
[362104063,1747997439171,-430.0,0.00020181,2]
[362104064,1747997439182,-474.364213,0.00020187,2]
[362104065,1747997439193,-430.0,0.00020455,2]
[362104066,1747997439203,-773.6700976,0.00020555,3]
[362104067,1747997439216,-11096.0,0.00020555,3]
[362104068,1747997439228,-777.99137687,0.00020555,3]
[362104069,1747997439237,-894.64583333,0.00020555,3]
[362104070,1747997439247,-212.48480548,0.00020555,3]
[362104071,1747997439256,-298.38789056,0.00020722,2]
[362104072,1747997439266,-430.0,0.00020729,2]
[362104073,1747997439276,-221.60376429,0.00020894,2]
[362104074,1747997439285,-468.02,0.00021003,2]
[362104075,1747997439295,-1000.0,0.00021587,2]
[362104076,1747997439305,-151.0,0.00021611,2]
[362104077,1747997439315,-542.294,0.00021628,2]
[362104078,1747997439325,-960.0,0.00021825,2]
[362104079,1747997439335,-707.0,0.00021825,2]
[362104080,1747997439345,-2233.0,0.00021825,2]
[362104081,1747997439355,-207.4,0.00021849,2]
[362104082,1747997439364,-221.60376429,0.00021895,2]
[362104083,1747997439374,-151.0,0.00022082,7]
[362104084,1747997439383,-12647.66147447,0.0002211,7]
[362104085,1747997439393,-894.64583333,0.0002211,7]
[362104086,1747997439402,-212.48480548,0.0002211,7]
[362104087,1747997439411,-2140.38,0.000222,2]
[362104088,1747997439420,-151.0,0.00022274,7]
[362104089,1747997439430,-151.0,0.00022438,7]
[362104090,1747997439439,-1000.0,0.00022683,2]
[362104091,1747997439449,-151.0,0.00022685,2]
[362104092,1747997439458,-253.71811751,0.00022712,2]
[362104093,1747997439468,-152.916541,0.00022773,2]
[362104094,1747997439479,-151.0,0.00023,7]
[362104095,1747997439488,-160.0,0.00023,3]
[362104096,1747997439498,-500.0,0.00023,2]
[362104097,1747997439508,-160.0,0.00023,3]
[362104098,1747997439517,-422.85710789,0.00023,3]
[362104099,1747997439527,-160.0,0.00023,3]
[362104100,1747997439537,-160.0,0.00023,3]
[362104101,1747997439546,-151.0,0.00023154,7]
[362104102,1747997439556,-215.0738,0.00023218,2]
[362104103,1747997439566,-39660.15,0.00023248,10]
[362104104,1747997439576,-8228.90517184,0.00023258,2]
[362104105,1747997439586,-5000.0,0.00023258,2]
[362104106,1747997439595,-5000.0,0.00023258,2]
[362104107,1747997439605,-5000.0,0.00023258,2]
[362104108,1747997439617,-5000.0,0.00023258,2]
[362104109,1747997439627,-4726.82,0.00023287,2]
[362104110,1747997439636,-505.23806914,0.00023299,2]
[362104111,1747997439645,-158.185926,0.00023744,2]
[362104112,1747997439655,-1000.0,0.00023779,2]
[362104113,1747997439666,-160.0,0.00024,7]
[362104114,1747997439675,-160.0,0.00024,10]
[362104115,1747997439686,-500.0,0.00024,2]
[362104116,1747997439695,-369.37891025,0.00024,2]
[362104117,1747997439705,-160.0,0.00024,7]
[362104118,1747997439714,-160.0,0.00024,10]
[362104119,1747997439725,-422.85710789,0.00024,7]
[362104120,1747997439735,-422.85710789,0.00024,10]
[362104121,1747997439744,-1000.0,0.00024,24]
[362104122,1747997439754,-160.0,0.00024,7]
[362104123,1747997439763,-160.0,0.00024,10]
[362104124,1747997439773,-160.0,0.00024,7]
[362104125,1747997439782,-160.0,0.00024,10]
[362104126,1747997439792,-152.916541,0.00024048,5]
[362104127,1747997439801,-152.916541,0.0002416,2]
[362104128,1747997439811,-615.30028319,0.00024409,2]
[362104129,1747997439821,-200.0,0.0002443,10]
[362104130,1747997439831,-1342.511051,0.00024433,2]
[362104131,1747997439846,-419.8254275,0.00024444,2]
[362104132,1747997439856,-152.916541,0.0002455,7]
[362104133,1747997439866,-223.0315306,0.00024587,2]
[362104134,1747997439876,-500.0,0.00024588,2]
[362104135,1747997439886,-152.916541,0.00024636,8]
[362104136,1747997439896,-152.916541,0.00024731,5]
[362104137,1747997439906,-152.916541,0.0002475,3]
[362104138,1747997439915,-707.0,0.00024825,2]
[362104139,1747997439926,-2233.0,0.00024825,2]
[362104140,1747997439935,-3048.99213533,0.00024858,2]
[362104141,1747997439945,-600.0,0.00024873,2]
[362104142,1747997439955,-1000.0,0.00024875,7]
[362104143,1747997439965,-3048.99213531,0.00024879,2]
[362104144,1747997439974,-258.2473515,0.00024898,2]
[362104145,1747997439984,-500.0,0.00024898,2]
[362104146,1747997439994,-500.0,0.00024898,2]
[362104147,1747997440004,-500.0,0.00024898,2]
[362104148,1747997440013,-500.0,0.00024898,2]
[362104149,1747997440023,-500.0,0.00024898,2]
[362104150,1747997440033,-500.0,0.00024898,2]
[362104151,1747997440043,-500.0,0.00024898,2]
[362104152,1747997440053,-426.66794916,0.00024898,2]
[362104153,1747997440062,-500.0,0.00024898,2]
[362104154,1747997440072,-500.0,0.00024898,2]
[362104155,1747997440081,-500.0,0.00024898,2]
[362104156,1747997440091,-500.0,0.00024898,2]
[362104157,1747997440109,-500.0,0.00024898,2]
[362104158,1747997440120,-500.0,0.00024898,2]
[362104159,1747997440129,-500.0,0.00024898,2]
[362104160,1747997440139,-500.0,0.00024898,2]
[362104161,1747997440154,-500.0,0.00024898,2]
[362104162,1747997440165,-176.37663692,0.00024898,2]
[362104163,1747997440175,-500.0,0.00024898,2]
[362104164,1747997440184,-500.0,0.00024898,2]
[362104165,1747997440195,-500.0,0.00024898,2]
[362104166,1747997440205,-500.0,0.00024898,2]
[362104167,1747997440217,-500.0,0.00024898,2]
[362104168,1747997440227,-500.0,0.00024898,2]
[362104169,1747997440236,-349.48352999,0.00024898,2]
[362104170,1747997440248,-500.0,0.00024898,2]
[362104171,1747997440257,-2000.0,0.000249,2]
[362104172,1747997440267,-250.0,0.000249,2]
[362104173,1747997440277,-215.5,0.000249,2]
[362104174,1747997440287,-2022.42075591,0.000249,2]
[362104175,1747997440297,-257219.30617708,0.000249,2]
[362104176,1747997440311,-528.78757581,0.000249,2]
[362104177,1747997440323,-501.87708855,0.000249,2]
[362104178,1747997440335,-821.1406638,0.000249,2]
[362104179,1747997440346,-4652.89057922,0.000249,2]
[362104180,1747997440358,-6388.39547625,0.000249,2]
[362104181,1747997440526,-984.84,0.000249,2]
[362104196,1747997443301,-13797.71431029,0.000249,2]
[362104197,1747997443312,-3048.99213531,0.000249,2]
[362104198,1747997443323,-152.916541,0.000249,7]
[362104199,1747997443333,-2022.42075588,0.00024958,2]
[362104200,1747997443344,-501.34095919,0.00024973,2]
[362104201,1747997443355,-1000.0,0.00024973,2]
[362104202,1747997443365,-69879.27176561,0.0002499,2]
[362104203,1747997443377,-25134.16962402,0.0002499,2]
[362104205,1747997446440,-349.8636417,0.00017988,2]
[362104206,1747997446450,-1240.01771373,0.0002035,2]
[362104207,1747997446460,-6815.92751949,0.0002499,2]
[362104219,1747998253815,456.413766,0.00013699,2]
[362104298,1747998494001,653.5263133,0.00026384,35]
[362104309,1747998544552,154.57366416,7.2e-07,2]
[362104310,1747998544662,154.57366416,7.2e-07,2]
[362104311,1747998544871,154.57366416,7.2e-07,2]
[362104312,1747998544975,154.57366416,7.2e-07,2]
[362104313,1747998545221,154.57366416,7.2e-07,2]
[362104342,1747998632484,-2435.1493941,0.00017807,2]
[362104343,1747998632496,-1597.50615178,0.00017807,2]
[362104347,1747998638415,-967.34445412,0.00017807,2]
[362104348,1747998638425,-430.0,0.00017988,2]
[362104349,1747998638434,-570.6737259,0.00018256,2]
[362104350,1747998638445,-268.08639826,0.0001864,2]
[362104351,1747998638455,-730.6943011,0.00018801,2]
[362104352,1747998638465,-240.0,0.00018899,2]
[362104353,1747998638474,-786.777561,0.000189,2]
[362104354,1747998638484,-445.7419247,0.00018999,2]
[362104355,1747998638493,-421.30642643,0.00018999,2]
[362104356,1747998638503,-430.0,0.00018999,2]
[362104357,1747998638516,-412.13720074,0.00018999,2]
[362104358,1747998638531,-430.0,0.00018999,2]
[362104359,1747998638541,-418.4671961,0.00018999,2]
[362104360,1747998638552,-323.59377873,0.00018999,2]
[362104361,1747998638561,-566.69189843,0.00018999,2]
[362104362,1747998638571,-430.0,0.00018999,2]
[362104363,1747998638580,-430.0,0.00018999,2]
[362104364,1747998638590,-171.40336436,0.00018999,2]
[362104366,1747998638600,-326.77180809,0.00018999,2]
[362104368,1747998638610,-430.0,0.00018999,2]
[362104370,1747998638620,-430.0,0.00018999,2]
[362104372,1747998638630,-543.19,0.00018999,2]
[362104374,1747998638640,-430.0,0.00018999,2]
[362104376,1747998638650,-434.3897666,0.00018999,2]
[362104378,1747998638660,-330.04268433,0.00018999,2]
[362104380,1747998638670,-430.0,0.00018999,2]
[362104382,1747998638679,-430.0,0.00018999,2]
[362104383,1747998638690,-430.0,0.00018999,2]
[362104385,1747998638700,-399.27530746,0.00018999,2]
[362104386,1747998638709,-430.0,0.00018999,2]
[362104387,1747998638719,-430.0,0.00018999,2]
[362104388,1747998638730,-181.8,0.00019,2]
[362104389,1747998638739,-363.6,0.00019,2]
[362104390,1747998638749,-545.4,0.00019,2]
[362104391,1747998638760,-727.2,0.00019,2]
[362104392,1747998638770,-909.0,0.00019,2]
[362104393,1747998638780,-1090.8,0.00019,2]
[362104394,1747998638789,-1272.6,0.00019,2]
[362104395,1747998638799,-1454.4,0.00019,2]
[362104396,1747998638808,-1636.2,0.00019,2]
[362104397,1747998638817,-1818.0,0.00019,2]
[362104398,1747998638827,-786.77756074,0.00019107,2]
[362104399,1747998638837,-158.185926,0.00019178,2]
[362104400,1747998638847,-227.47,0.00019273,2]
[362104401,1747998638857,-430.0,0.00019273,2]
[362104402,1747998638867,-468.02,0.00019273,2]
[362104403,1747998638877,-786.77756074,0.00019314,2]
[362104404,1747998638887,-786.77756074,0.00019521,2]
[362104405,1747998638896,-430.0,0.00019547,2]
[362104406,1747998638908,-158.28840309,0.00019595,2]
[362104407,1747998638919,-160.0,0.00019691,2]
[362104408,1747998638929,-160.0,0.00019691,2]
[362104409,1747998638939,-894.64583333,0.00019691,2]
[362104410,1747998638948,-160.0,0.00019692,2]
[362104411,1747998638958,-422.85710789,0.00019692,2]
[362104412,1747998638968,-212.48480548,0.00019692,2]
[362104413,1747998638978,-12647.66147447,0.00019692,2]
[362104414,1747998638988,-160.0,0.00019692,2]
[362104415,1747998638998,-160.0,0.00019692,2]
[362104416,1747998639008,-2924.92777377,0.000197,5]
[362104417,1747998639018,-786.77756074,0.00019728,2]
[362104418,1747998639028,-430.0,0.00019821,2]
[362104419,1747998639039,-786.77756074,0.00019934,2]
[362104420,1747998639048,-157.93,0.0002,2]
[362104421,1747998639059,-280.88380527,0.0002,30]
[362104422,1747998639069,-430.0,0.00020095,2]
[362104423,1747998639079,-786.77756074,0.00020141,2]
[362104424,1747998639090,-456.413766,0.00020187,2]
[362104425,1747998639100,-786.77756074,0.00020348,3]
[362104426,1747998639111,-430.0,0.00020369,2]
[362104427,1747998639120,-158.28840306,0.00020479,2]
[362104428,1747998639130,-500.0,0.00020552,2]
[362104429,1747998639140,-500.0,0.00020552,2]
[362104430,1747998639152,-609.62409688,0.00020552,2]
[362104431,1747998639162,-272.74891524,0.00020552,2]
[362104432,1747998639172,-500.0,0.00020552,2]
[362104433,1747998639182,-500.0,0.00020552,2]
[362104434,1747998639192,-500.0,0.00020552,2]
[362104435,1747998639202,-500.0,0.00020552,2]
[362104436,1747998639212,-383.53341446,0.00020552,2]
[362104437,1747998639222,-500.0,0.00020552,2]
[362104438,1747998639232,-590.45910417,0.00020552,2]
[362104439,1747998639242,-500.0,0.00020552,2]
[362104440,1747998639252,-500.0,0.00020552,2]
[362104441,1747998639261,-500.0,0.00020552,2]
[362104442,1747998639272,-500.0,0.00020552,2]
[362104443,1747998639282,-500.0,0.00020552,2]
[362104444,1747998639291,-500.0,0.00020552,2]
[362104445,1747998639302,-500.0,0.00020552,2]
[362104446,1747998639313,-500.0,0.00020552,2]
[362104447,1747998639322,-500.0,0.00020552,2]
[362104448,1747998639332,-500.0,0.00020552,2]
[362104449,1747998639342,-500.0,0.00020552,2]
[362104450,1747998639352,-500.0,0.00020552,2]
[362104451,1747998639362,-500.0,0.00020552,2]
[362104452,1747998639371,-500.0,0.00020552,2]
[362104453,1747998639381,-500.0,0.00020552,2]
[362104454,1747998639391,-500.0,0.00020552,2]
[362104455,1747998639401,-500.0,0.00020552,2]
[362104456,1747998639411,-500.0,0.00020552,2]
[362104457,1747998639421,-500.0,0.00020552,2]
[362104458,1747998639431,-500.0,0.00020552,2]
[362104459,1747998639441,-500.0,0.00020552,2]
[362104460,1747998639451,-500.0,0.00020552,2]
[362104461,1747998639461,-500.0,0.00020552,2]
[362104462,1747998639471,-500.0,0.00020552,2]
[362104463,1747998639480,-500.0,0.00020552,2]
[362104464,1747998639490,-500.0,0.00020552,2]
[362104465,1747998639500,-500.0,0.00020552,2]
[362104466,1747998639511,-786.77756074,0.00020555,3]
[362104467,1747998639522,-430.0,0.00020643,2]
[362104468,1747998639532,-786.77756074,0.00020762,3]
[362104469,1747998639542,-430.0,0.00020917,2]
[362104470,1747998639552,-304.02338816,0.0002096,2]
[362104471,1747998639562,-786.77756074,0.00020969,4]
[362104472,1747998639572,-438.69514326,0.00020973,2]
[362104473,1747998639582,-3000.0,0.00021,2]
[362104474,1747998639593,-3481.0,0.00021,2]
[362104475,1747998639604,-3000.0,0.0002101,2]
[362104476,1747998639614,-3000.0,0.0002102,2]
[362104477,1747998639624,-3000.0,0.0002103,2]
[362104478,1747998639634,-384.76,0.0002103,3]
[362104479,1747998639644,-875.5,0.0002103,3]
[362104480,1747998639654,-39660.15,0.0002103,10]
[362104481,1747998639664,-3000.0,0.0002104,2]
[362104482,1747998639675,-291.82,0.0002104,3]
[362104483,1747998639684,-3000.0,0.0002105,2]
[362104484,1747998639695,-3000.0,0.0002106,2]
[362104485,1747998639705,-3000.0,0.0002107,2]
[362104486,1747998639714,-3000.0,0.0002108,2]
[362104487,1747998639724,-160.76326196,0.00021089,2]
[362104488,1747998639734,-3000.0,0.0002109,2]
[362104489,1747998639745,-3000.0,0.000211,2]
[362104490,1747998639754,-3000.0,0.0002111,2]
[362104491,1747998639764,-3000.0,0.0002112,2]
[362104492,1747998639775,-3000.0,0.0002113,2]
[362104493,1747998639784,-3000.0,0.0002114,2]
[362104494,1747998639795,-3000.0,0.0002115,2]
[362104495,1747998639805,-3000.0,0.0002116,2]
[362104496,1747998639814,-3000.0,0.0002117,2]
[362104497,1747998639824,-786.77756074,0.00021176,4]
[362104498,1747998639833,-3000.0,0.0002118,2]
[362104499,1747998639843,-3000.0,0.0002119,2]
[362104500,1747998639853,-430.0,0.00021191,2]
[362104501,1747998639863,-5318.719029,0.000212,2]
[362104502,1747998639873,-158.28840306,0.00021363,2]
[362104503,1747998639883,-786.77756074,0.00021383,5]
[362104504,1747998639894,-430.0,0.00021465,2]
[362104505,1747998639904,-1100.0,0.00021587,2]
[362104506,1747998639913,-786.77756074,0.0002159,5]
[362104507,1747998639923,-577.527,0.00021621,2]
[362104508,1747998639933,-214.08094089,0.00021739,2]
[362104509,1747998639943,-786.77756074,0.00021797,6]
[362104510,1747998639953,-960.0,0.0002183,2]
[362104511,1747998639963,-707.0,0.0002183,2]
[362104512,1747998639973,-2233.0,0.0002183,2]
[362104513,1747998639984,-200.0,0.00021917,2]
[362104514,1747998639994,-304.02338814,0.00021945,2]
[362104515,1747998640004,-173.0,0.00022,2]
[362104516,1747998640014,-786.77756074,0.00022003,6]
[362104517,1747998640025,-1070.61494781,0.00022188,2]
[362104518,1747998640035,-786.77756074,0.0002221,6]
[362104519,1747998640049,-151.0,0.00022245,2]
[362104520,1747998640069,-207.4,0.00022245,2]
[362104521,1747998640083,-158.28840306,0.00022248,2]
[362104522,1747998640093,-1972.0,0.0002235,2]
[362104523,1747998640103,-583.64,0.0002241,3]
[362104524,1747998640113,-786.77756074,0.00022417,7]
[362104525,1747998640123,-786.77756074,0.00022624,7]
[362104526,1747998640133,-1100.0,0.00022683,2]
[362104527,1747998640143,-151.49577982,0.00022685,2]
[362104528,1747998640154,-151.0,0.00022685,2]
[362104530,1747998640163,-151.0,0.00022685,2]
[362104531,1747998640173,-169.78580715,0.00022685,2]
[362104532,1747998640183,-151.0,0.00022685,2]
[362104533,1747998640193,-151.0,0.00022685,2]
[362104534,1747998640203,-167.69978307,0.00022685,2]
[362104535,1747998640213,-500.0,0.00022685,2]
[362104537,1747998640223,-5002.15017779,0.00022711,7]
[362104538,1747998640234,-151.0,0.00022712,2]
[362104539,1747998640244,-500.0,0.00022712,2]
[362104540,1747998640254,-253.71811751,0.0002274,2]
[362104541,1747998640265,-500.0,0.0002274,2]
[362104543,1747998640276,-500.0,0.00022767,2]
[362104544,1747998640286,-153.807562,0.00022779,2]
[362104545,1747998640297,-500.0,0.00022795,2]
[362104546,1747998640307,-500.0,0.00022822,2]
[362104547,1747998640317,-786.77756074,0.00022831,8]
[362104548,1747998640327,-500.0,0.00022849,2]
[362104549,1747998640338,-500.0,0.00022877,2]
[362104550,1747998640348,-500.0,0.00022904,2]
[362104551,1747998640359,-304.02338814,0.0002293,2]
[362104552,1747998640370,-500.0,0.00022932,2]
[362104553,1747998640380,-500.0,0.00022959,2]
[362104554,1747998640391,-500.0,0.00022986,2]
[362104555,1747998640401,-2140.38,0.00023,2]
[362104556,1747998640410,-173.0,0.00023014,7]
[362104557,1747998640420,-500.0,0.00023014,2]
[362104558,1747998640431,-786.77756074,0.00023038,8]
[362104559,1747998640441,-500.0,0.00023041,2]
[362104560,1747998640451,-270.46841003,0.00023069,2]
[362104561,1747998640462,-158.28840306,0.00023132,2]
[362104562,1747998640472,-2032.66142356,0.00023158,2]
[362104563,1747998640482,-24900.0,0.00023169,2]
[362104564,1747998640492,-797.238,0.00023208,2]
[362104565,1747998640502,-2200.0,0.00023208,2]
[362104566,1747998640514,-786.77756074,0.00023245,8]
[362104567,1747998640525,-8228.90517184,0.00023258,2]
[362104569,1747998640535,-5000.0,0.00023258,2]
[362104570,1747998640545,-5000.0,0.00023258,2]
[362104571,1747998640555,-5000.0,0.00023258,2]
[362104572,1747998640565,-5000.0,0.00023258,2]
[362104573,1747998640576,-4726.82,0.00023287,2]
[362104574,1747998640586,-786.77756074,0.00023452,9]
[362104575,1747998640596,-215.0738,0.00023614,2]
[362104576,1747998640607,-786.77756074,0.00023659,9]
[362104577,1747998640617,-1100.0,0.00023779,2]
[362104578,1747998640627,-786.77756074,0.00023866,10]
[362104579,1747998640638,-304.02338814,0.00023915,2]